fUSD/lending_fUSD_20250826
["ID","MTS","AMOUNT","RATE_DAILY","PERIOD"]
[381486214,1756230752518,-1125.16,0.00028493,5]
[381486215,1756230752527,-1186.06,0.00028493,5]
[381486216,1756230752536,-1017.63,0.00028493,5]
[381486217,1756230752545,-509.43,0.00028493,5]
[381486218,1756230752554,-629.18,0.00028493,5]
[381486219,1756230752563,-1490.01,0.00028493,5]
[381486220,1756230752572,-1054.6,0.00028493,5]
[381486221,1756230752581,-516.44,0.00028493,5]
[381486222,1756230752590,-810.92,0.00028493,5]
[381486223,1756230752599,-682.69,0.00028493,5]
[381486224,1756230752608,-1009.65,0.00028493,5]
[381486225,1756230752618,-883.73,0.00028493,5]
[381486226,1756230752627,-1283.33,0.00028493,5]
[381486227,1756230752635,-1591.74,0.00028493,5]
[381486228,1756230752644,-817.88,0.00028493,5]
[381486229,1756230752653,-657.14,0.00028493,5]
[381486230,1756230752662,-559.69,0.00028493,5]
[381486231,1756230752675,-400.0,0.00028493,5]
[381486232,1756230752684,-434.49,0.00028493,5]
[381486233,1756230752693,-543.23,0.00028493,5]
[381486234,1756230752701,-839.27,0.00028493,5]
[381486235,1756230752711,-400.0,0.00028493,5]
[381486236,1756230752720,-694.48,0.00028493,5]
[381486237,1756230752730,-1164.11,0.00028493,5]
[381486238,1756230752739,-400.0,0.00028493,5]
[381486239,1756230752749,-2471.18,0.00028493,5]
[381486240,1756230752759,-923.85,0.00028493,5]
[381486241,1756230752768,-735.71,0.00028493,5]
[381486242,1756230752777,-602.76,0.00028493,5]
[381486243,1756230752785,-400.0,0.00028493,5]
[381486244,1756230752795,-1015.23,0.00028493,5]
[381486245,1756230752806,-1297.06,0.00028493,5]
[381486246,1756230752815,-400.0,0.00028493,5]
[381486247,1756230752824,-400.0,0.00028493,5]
[381486248,1756230752834,-1022.18,0.00028493,5]
[381486249,1756230752844,-413.82,0.00028493,5]
[381486250,1756230752854,-400.0,0.00028493,5]
[381486251,1756230752866,-677.17,0.00028493,5]
[381486252,1756230752875,-435.62,0.00028493,5]
[381486253,1756230752885,-481.79,0.00028493,5]
[381486254,1756230752894,-869.43,0.00028493,5]
[381486255,1756230752903,-400.0,0.00028493,5]
[381486256,1756230752912,-400.0,0.00028493,5]
[381486257,1756230752922,-1587.32,0.00028493,5]
[381486258,1756230752931,-404.82,0.00028493,5]
[381486259,1756230752940,-1419.4,0.00028493,5]
[381486260,1756230752949,-795.96,0.00028493,5]
[381486261,1756230752959,-400.0,0.00028493,5]
[381486262,1756230752969,-400.0,0.00028493,5]
[381486263,1756230752979,-400.0,0.00028493,5]
[381486264,1756230752988,-1337.38,0.00028493,5]
[381486265,1756230752998,-643.48,0.00028493,5]
[381486266,1756230753007,-1193.06,0.00028493,5]
[381486267,1756230753018,-1262.91,0.00028493,5]
[381486268,1756230753027,-400.0,0.00028493,5]
[381486269,1756230753038,-400.0,0.00028493,5]
[381486270,1756230753048,-1405.96,0.00028493,5]
[381486271,1756230753059,-1694.19,0.00028493,5]
[381486272,1756230753068,-400.0,0.00028493,5]
[381486273,1756230753079,-847.69,0.00028493,5]
[381486274,1756230753090,-1432.19,0.00028493,5]
[381486275,1756230753100,-837.85,0.00028493,5]
[381486276,1756230753109,-1265.35,0.00028493,5]
[381486277,1756230753119,-1066.71,0.00028493,5]
[381486278,1756230753129,-1337.65,0.00028493,5]
[381486279,1756230753139,-983.38,0.00028493,5]
[381486280,1756230753148,-448.3,0.00028493,5]
[381486281,1756230753158,-2638.84,0.00028493,5]
[381486282,1756230753167,-510.88,0.00028493,5]
[381486283,1756230753177,-1419.37,0.00028493,5]
[381486284,1756230753189,-1378.39,0.00028493,5]
[381486285,1756230753199,-436.05,0.00028493,5]
[381486286,1756230753208,-866.21,0.00028493,5]
[381486287,1756230753218,-400.0,0.00028493,5]
[381486288,1756230753229,-1097.19,0.00028493,5]
[381486289,1756230753239,-968.52,0.00028493,5]
[381486290,1756230753249,-1097.27,0.00028493,5]
[381486291,1756230753258,-400.0,0.00028493,5]
[381486292,1756230753268,-400.0,0.00028493,5]
[381486293,1756230753278,-898.9,0.00028493,5]
[381486294,1756230753289,-1054.02,0.00028493,5]
[381486295,1756230753299,-894.21,0.00028493,5]
[381486296,1756230753309,-400.0,0.00028493,5]
[381486297,1756230753319,-486.16,0.00028493,5]
[381486298,1756230753328,-400.0,0.00028493,5]
[381486299,1756230753338,-2351.0,0.00028493,5]
[381486300,1756230753348,-400.0,0.00028493,5]
[381486301,1756230753358,-400.0,0.00028493,5]
[381486302,1756230753368,-990.16,0.00028493,5]
[381486303,1756230753378,-400.0,0.00028493,5]
[381486304,1756230753388,-708.23,0.00028493,5]
[381486305,1756230753398,-812.56,0.00028493,5]
[381486306,1756230753408,-1481.93,0.00028493,5]
[381486307,1756230753418,-412.31191567,0.00028493,5]
[381486308,1756230753429,-400.0,0.00028493,5]
[381486309,1756230753439,-1309.05,0.00028493,5]
[381486310,1756230753449,-400.0,0.00028493,5]
[381486311,1756230753459,-12576.35,0.00028493,5]
[381486312,1756230753470,-400.0,0.00028493,5]
[381486313,1756230753479,-752.61,0.00028493,5]
[381486314,1756230753489,-716.67,0.00028493,5]
[381486315,1756230753499,-440.38,0.00028493,5]
[381486316,1756230753509,-1045.55,0.00028493,5]
[381486317,1756230753518,-1040.13,0.00028493,5]
[381486318,1756230753528,-610.13,0.00028493,5]
[381486319,1756230753537,-1232.14,0.00028493,5]
[381486320,1756230753546,-400.0,0.00028493,5]
[381486321,1756230753556,-453.93,0.00028493,5]
[381486322,1756230753566,-400.0,0.00028493,5]
[381486323,1756230753576,-513.88,0.00028493,5]
[381486324,1756230753585,-956.51,0.00028493,5]
[381486325,1756230753595,-1004.11,0.00028493,5]
[381486326,1756230753604,-1144.57,0.00028493,5]
[381486327,1756230753614,-2716.73,0.00028493,5]
[381486328,1756230753625,-1348.02,0.00028493,5]
[381486329,1756230753770,-400.0,0.00028493,5]
[381486330,1756230753781,-400.0,0.00028493,5]
[381486331,1756230753792,-795.95,0.00028493,5]
[381486332,1756230753801,-720.68,0.00028493,5]
[381486333,1756230753812,-400.0,0.00028493,5]
[381486334,1756230753822,-583.37,0.00028493,5]
[381486335,1756230753832,-1164.87,0.00028493,5]
[381486336,1756230753842,-796.49,0.00028493,5]
[381486337,1756230753852,-1234.75,0.00028493,5]
[381486338,1756230753862,-1208.11,0.00028493,5]
[381486339,1756230753872,-2365.85,0.00028493,5]
[381486340,1756230753882,-1090.57,0.00028493,5]
[381486341,1756230753892,-725.15,0.00028493,5]
[381486342,1756230753902,-400.0,0.00028493,5]
[381486343,1756230753912,-1204.31,0.00028493,5]
[381486344,1756230753922,-400.0,0.00028493,5]
[381486345,1756230753932,-607.03,0.00028493,5]
[381486346,1756230753942,-1391.48,0.00028493,5]
[381486347,1756230753951,-1460.18,0.00028493,5]
[381486348,1756230753961,-774.92,0.00028493,5]
[381486349,1756230753970,-1529.6,0.00028493,5]
[381486350,1756230753980,-949.27,0.00028493,5]
[381486351,1756230753989,-400.0,0.00028493,5]
[381486352,1756230754000,-1381.91,0.00028493,5]
[381486353,1756230754011,-1214.51,0.00028493,5]
[381486354,1756230754021,-681.18,0.00028493,5]
[381486355,1756230754031,-846.41,0.00028493,5]
[381486356,1756230754041,-870.23,0.00028493,5]
[381486357,1756230754051,-2660.08,0.00028493,5]
[381486358,1756230754061,-400.0,0.00028493,5]
[381486359,1756230754071,-1268.24,0.00028493,5]
[381486360,1756230754081,-1218.74,0.00028493,5]
[381486361,1756230754092,-960.42,0.00028493,5]
[381486362,1756230754102,-727.24,0.00028493,5]
[381486363,1756230754112,-836.11,0.00028493,5]
[381486364,1756230754121,-1206.86,0.00028493,5]
[381486365,1756230754131,-935.16,0.00028493,5]
[381486366,1756230754141,-400.0,0.00028493,5]
[381486367,1756230754151,-1646.5,0.00028493,5]
[381486368,1756230754161,-5333.52,0.00028493,5]
[381486369,1756230754171,-696.66,0.00028493,5]
[381486370,1756230754181,-400.0,0.00028493,5]
[381486371,1756230754191,-400.0,0.00028493,5]
[381486372,1756230754201,-446.0,0.00028493,5]
[381486373,1756230754211,-400.0,0.00028493,2]
[381486374,1756230754220,-859.49,0.00028493,5]
[381486375,1756230754230,-1578.12,0.00028493,5]
[381486376,1756230754241,-928.83,0.00028493,5]
[381486377,1756230754251,-604.92,0.00028493,5]
[381486378,1756230754261,-400.0,0.00028493,5]
[381486379,1756230754271,-1272.58,0.00028493,5]
[381486380,1756230754281,-400.0,0.00028493,5]
[381486381,1756230754291,-400.0,0.00028493,5]
[381486382,1756230754301,-714.94,0.00028493,5]
[381486383,1756230754311,-636.63,0.00028493,5]
[381486384,1756230754320,-752.58,0.00028493,5]
[381486385,1756230754330,-400.0,0.00028493,5]
[381486386,1756230754340,-400.0,0.00028493,5]
[381486387,1756230754350,-525.95,0.00028493,5]
[381486388,1756230754360,-1703.78,0.00028493,5]
[381486389,1756230754370,-400.0,0.00028493,5]
[381486390,1756230754379,-607.66,0.00028493,5]
[381486391,1756230754389,-1622.59,0.00028493,5]
[381486392,1756230754398,-500.0,0.00028494,10]
[381486393,1756230754407,-500.0,0.00028494,5]
[381486394,1756230754417,-500.0,0.00028494,5]
[381486395,1756230754427,-397.28574587,0.00028494,5]
[381486396,1756230754436,-500.0,0.00028494,5]
[381486397,1756230754450,-500.0,0.00028494,5]
[381486398,1756230754460,-500.0,0.00028494,5]
[381486399,1756230754469,-500.0,0.00028494,5]
[381486400,1756230754479,-500.0,0.00028494,5]
[381486401,1756230754489,-500.0,0.00028494,5]
[381486402,1756230754498,-1000.0,0.00028494,2]
[381486403,1756230754508,-500.0,0.00028494,5]
[381486404,1756230754517,-528.93,0.00028494,5]
[381486405,1756230754527,-500.0,0.00028494,5]
[381486406,1756230754536,-528.93,0.00028494,5]
[381486407,1756230754546,-500.0,0.00028494,5]
[381486408,1756230754555,-528.93,0.00028494,5]
[381486409,1756230754564,-500.0,0.00028494,5]
[381486410,1756230754574,-528.93,0.00028494,5]
[381486411,1756230754583,-500.0,0.00028494,5]
[381486412,1756230754592,-528.93,0.00028494,5]
[381486413,1756230754602,-500.0,0.00028494,5]
[381486414,1756230754611,-528.93,0.00028494,5]
[381486415,1756230754621,-500.0,0.00028494,5]
[381486416,1756230754630,-500.0,0.00028494,5]
[381486417,1756230754641,-500.0,0.00028494,5]
[381486418,1756230754650,-500.0,0.00028494,5]
[381486419,1756230754660,-500.0,0.00028494,5]
[381486420,1756230754672,-500.0,0.00028494,5]
[381486421,1756230754681,-500.0,0.00028494,5]
[381486422,1756230754691,-500.0,0.00028494,5]
[381486423,1756230754701,-502.94655368,0.00028494,5]
[381486424,1756230754710,-500.0,0.00028494,5]
[381486425,1756230754723,-500.0,0.00028494,5]
[381486426,1756230754734,-594.44237397,0.00028494,5]
[381486427,1756230754745,-443.77262384,0.00028494,5]
[381486428,1756230754757,-500.0,0.00028494,5]
[381486429,1756230754767,-500.0,0.00028494,5]
[381486430,1756230754777,-501.79330582,0.00028494,5]
[381486431,1756230754786,-215.91744665,0.00028494,5]
[381486432,1756230754795,-1391669.7149056,0.00028495,4]
[381486433,1756230754805,-344.2,0.000285,2]
[381486434,1756230754814,-344.2,0.000285,2]
[381486435,1756230754825,-30372.91,0.000285,2]
[381486436,1756230754835,-1692.935858,0.000285,2]
[381486437,1756230754844,-1425.0,0.00028505,2]
[381486438,1756230754854,-150.0,0.00028505,2]
[381486439,1756230754863,-150.0,0.00028512,2]
[381486440,1756230754872,-250.0,0.00028521,5]
[381486441,1756230754881,-1000.0,0.00028526,2]
[381486442,1756230754890,-1425.0,0.00028532,2]
[381486443,1756230754899,-150.0,0.00028538,2]
[381486444,1756230754909,-150.0,0.00028541,2]
[381486445,1756230754918,-1425.0,0.00028543,2]
[381486446,1756230754927,-150.0,0.00028549,2]
[381486447,1756230754937,-1425.0,0.00028555,2]
[381486448,1756230754946,-150.0,0.00028556,2]
[381486449,1756230754956,-150.0,0.00028565,2]
[381486450,1756230754965,-200.0,0.00028573,2]
[381486451,1756230754974,-1000.0,0.00028587,2]
[381486452,1756230754984,-1057.85,0.000286,30]
[381486453,1756230754994,-1305.73,0.000286,7]
[381486454,1756230755006,-1000.0,0.00028604,2]
[381486455,1756230755016,-1000.0,0.00028607,2]
[381486456,1756230755025,-150.0,0.00028632,2]
[381486457,1756230755035,-150.0,0.00028632,2]
[381486458,1756230755046,-150.0,0.0002865,2]
[381486459,1756230755056,-150.0,0.00028656,2]
[381486460,1756230755066,-150.0,0.00028671,2]
[381486461,1756230755075,-150.0,0.0002869,2]
[381486462,1756230755085,-150.0,0.00028697,2]
[381486463,1756230755095,-150.0,0.00028699,2]
[381486464,1756230755105,-1000.0,0.00028699,2]
[381486465,1756230755115,-1096.0,0.000287,2]
[381486466,1756230755124,-150.0,0.00028704,2]
[381486467,1756230755134,-2000.0,0.0002871,2]
[381486468,1756230755144,-2000.0,0.0002871,2]
[381486469,1756230755153,-150.0,0.00028713,2]
[381486470,1756230755163,-150.0,0.0002872,2]
[381486471,1756230755172,-1000.0,0.00028731,2]
[381486472,1756230755182,-528.0,0.00028738,14]
[381486473,1756230755191,-1000.0,0.00028745,2]
[381486474,1756230755201,-19794.7029536,0.00028748,30]
[381486475,1756230755210,-500.0,0.00028748,5]
[381486476,1756230755220,-528.93,0.00028748,5]
[381486477,1756230755229,-500.0,0.00028748,5]
[381486478,1756230755238,-1458.79,0.00028749,5]
[381486479,1756230755248,-400.0,0.00028749,5]
[381486480,1756230755257,-634.76,0.00028749,5]
[381486481,1756230755267,-400.0,0.00028749,5]
[381486482,1756230755276,-539.93,0.00028749,5]
[381486483,1756230755286,-690.63,0.00028749,5]
[381486484,1756230755295,-400.0,0.00028749,5]
[381486485,1756230755304,-1099.28,0.00028749,5]
[381486486,1756230755314,-598.43,0.00028749,5]
[381486487,1756230755324,-861.3,0.00028749,5]
[381486488,1756230755333,-400.0,0.00028749,5]
[381486489,1756230755343,-1174.77,0.00028749,5]
[381486490,1756230755352,-774.77,0.00028749,5]
[381486491,1756230755362,-400.0,0.00028749,5]
[381486492,1756230755372,-400.0,0.00028749,5]
[381486493,1756230755381,-1150.13,0.00028749,5]
[381486494,1756230755390,-554.69,0.00028749,5]
[381486495,1756230755399,-400.0,0.00028749,5]
[381486496,1756230755408,-689.46,0.00028749,5]
[381486497,1756230755418,-400.0,0.00028749,5]
[381486498,1756230755427,-400.0,0.00028749,5]
[381486499,1756230755437,-400.0,0.00028749,5]
[381486500,1756230755446,-933.25,0.00028749,5]
[381486501,1756230755455,-989.27,0.00028749,5]
[381486502,1756230755464,-400.0,0.00028749,5]
[381486503,1756230755474,-400.0,0.00028749,5]
[381486504,1756230755483,-400.0,0.00028749,5]
[381486505,1756230755492,-820.77,0.00028749,5]
[381486506,1756230755501,-786.47,0.00028749,5]
[381486507,1756230755510,-615.26,0.00028749,5]
[381486508,1756230755519,-400.0,0.00028749,5]
[381486509,1756230755529,-617.18,0.00028749,5]
[381486510,1756230755539,-400.0,0.00028749,5]
[381486511,1756230755548,-1146.58,0.00028749,5]
[381486512,1756230755557,-414.98,0.00028749,5]
[381486513,1756230755566,-400.0,0.00028749,5]
[381486514,1756230755575,-645.15,0.00028749,5]
[381486515,1756230755585,-400.0,0.00028749,5]
[381486516,1756230755594,-400.0,0.00028749,5]
[381486517,1756230755604,-400.0,0.00028749,5]
[381486518,1756230755613,-400.0,0.00028749,5]
[381486519,1756230755622,-1487.28,0.00028749,5]
[381486520,1756230755633,-400.0,0.00028749,5]
[381486521,1756230755642,-709.5,0.00028749,5]
[381486522,1756230755652,-781.03,0.00028749,5]
[381486523,1756230755662,-736.53,0.00028749,5]
[381486524,1756230755674,-400.0,0.00028749,5]
[381486525,1756230755684,-400.0,0.00028749,5]
[381486526,1756230755693,-475.59,0.00028749,5]
[381486527,1756230755703,-400.0,0.00028749,5]
[381486528,1756230755712,-400.0,0.00028749,5]
[381486529,1756230755723,-400.0,0.00028749,5]
[381486530,1756230755733,-400.0,0.00028749,5]
[381486531,1756230755743,-586.19,0.00028749,5]
[381486532,1756230755754,-1100.6,0.00028749,5]
[381486533,1756230755764,-400.0,0.00028749,5]
[381486534,1756230755773,-558.77,0.00028749,5]
[381486535,1756230755783,-400.0,0.00028749,5]
[381486536,1756230755792,-400.0,0.00028749,5]
[381486537,1756230755802,-805.61,0.00028749,5]
[381486538,1756230755811,-587.26,0.00028749,5]
[381486539,1756230755820,-880.88,0.00028749,5]
[381486540,1756230755836,-1142.86,0.00028766,5]
[381486541,1756230755846,-1254.63,0.00028766,5]
[381486542,1756230755856,-1057.93,0.00028766,5]
[381486543,1756230755865,-1079.24,0.00028766,5]
[381486544,1756230755875,-3055.95,0.00028766,5]
[381486545,1756230755883,-1650.32,0.00028766,5]
[381486546,1756230756230,-13513.14,0.00028766,5]
[381486547,1756230756239,-2253.65,0.00028766,5]
[381486548,1756230756249,-1270.75,0.00028766,5]
[381486549,1756230756259,-2157.11,0.00028766,5]
[381486550,1756230756269,-1950.58,0.00028766,5]
[381486551,1756230756279,-1356.06,0.00028766,5]
[381486552,1756230756288,-1314.24,0.00028766,5]
[381486553,1756230756298,-1468.69,0.00028766,5]
[381486554,1756230756311,-809.74,0.00028766,5]
[381486555,1756230756320,-1206.09,0.00028766,5]
[381486556,1756230756329,-741.88,0.00028766,5]
[381486557,1756230756344,-1611.27,0.00028766,5]
[381486558,1756230756354,-1224.97,0.00028766,5]
[381486559,1756230756363,-1049.32,0.00028766,5]
[381486560,1756230756373,-976.61,0.00028766,5]
[381486561,1756230756382,-1611.56,0.00028766,5]
[381486562,1756230756392,-869.98,0.00028766,5]
[381486563,1756230756401,-1131.94,0.00028766,5]
[381486564,1756230756410,-782.57,0.00028766,5]
[381486565,1756230756420,-1548.86,0.00028766,5]
[381486566,1756230756429,-1331.02,0.00028766,5]
[381486567,1756230756440,-1391.3,0.00028766,5]
[381486568,1756230756450,-1191.31,0.00028766,5]
[381486569,1756230756460,-1107.49,0.00028766,5]
[381486570,1756230756469,-1320.74,0.00028766,5]
[381486571,1756230756478,-1054.46,0.00028766,5]
[381486572,1756230756488,-400.0,0.00028766,5]
[381486573,1756230756497,-1150.33,0.00028766,5]
[381486574,1756230756510,-819.86,0.00028766,5]
[381486575,1756230756521,-400.0,0.00028766,5]
[381486576,1756230756530,-933.75,0.00028766,5]
[381486577,1756230756539,-1547.78,0.00028766,5]
[381486578,1756230756549,-1438.18,0.00028766,5]
[381486579,1756230756558,-1497.03,0.00028766,5]
[381486580,1756230756568,-6789.96,0.00028766,5]
[381486581,1756230756577,-1497.12,0.00028766,5]
[381486582,1756230756587,-400.0,0.00028766,5]
[381486583,1756230756598,-863.08,0.00028766,5]
[381486584,1756230756608,-753.29,0.00028766,5]
[381486585,1756230756618,-787.78,0.00028766,5]
[381486586,1756230756627,-1613.31,0.00028766,5]
[381486587,1756230756637,-773.75,0.00028766,5]
[381486588,1756230756647,-586.3,0.00028766,5]
[381486589,1756230756657,-530.09,0.00028766,5]
[381486590,1756230756667,-1037.63,0.00028766,5]
[381486591,1756230756679,-1217.55,0.00028766,5]
[381486592,1756230756688,-1228.91,0.00028766,5]
[381486593,1756230756698,-400.0,0.00028766,5]
[381486594,1756230756707,-1141.77,0.00028766,5]
[381486595,1756230756718,-1590.13,0.00028766,5]
[381486596,1756230756727,-924.3,0.00028766,5]
[381486597,1756230756736,-575.23,0.00028766,5]
[381486598,1756230756745,-664.99,0.00028766,5]
[381486599,1756230756757,-778.5,0.00028766,5]
[381486600,1756230756766,-1457.28,0.00028766,5]
[381486601,1756230756776,-724.45,0.00028766,5]
[381486602,1756230756785,-847.97,0.00028766,5]
[381486603,1756230756794,-630.74,0.00028766,5]
[381486604,1756230756804,-1505.52,0.00028766,5]
[381486605,1756230756813,-717.92,0.00028766,5]
[381486606,1756230756823,-431.96,0.00028766,5]
[381486607,1756230756832,-1179.57,0.00028766,5]
[381486608,1756230756843,-1699.29,0.00028766,5]
[381486609,1756230756853,-854.23,0.00028766,5]
[381486610,1756230756862,-628.02,0.00028766,5]
[381486611,1756230756872,-1139.37,0.00028766,5]
[381486612,1756230756881,-480.43,0.00028766,5]
[381486613,1756230756891,-683.47,0.00028766,5]
[381486614,1756230756901,-1228.89,0.00028766,5]
[381486615,1756230756910,-400.0,0.00028767,5]
[381486616,1756230756921,-1156.63,0.00028767,5]
[381486617,1756230756930,-814.45,0.00028767,5]
[381486618,1756230756939,-400.0,0.00028767,5]
[381486619,1756230756950,-1203.77,0.00028767,5]
[381486620,1756230756961,-485.02712468,0.00028767,5]
[381486621,1756230756971,-677.3,0.00028767,5]
[381486622,1756230756981,-1373.11,0.00028767,5]
[381486623,1756230756990,-412.27,0.00028767,5]
[381486624,1756230757002,-466.37,0.00028767,5]
[381486625,1756230757012,-884.22,0.00028767,5]
[381486626,1756230757021,-579.9,0.00028767,5]
[381486627,1756230757031,-400.0,0.00028767,5]
[381486628,1756230757040,-400.0,0.00028767,5]
[381486629,1756230757050,-503.27,0.00028767,5]
[381486630,1756230757059,-400.0,0.00028767,5]
[381486631,1756230757069,-783.4,0.00028767,5]
[381486632,1756230757078,-522.31106786,0.00028767,5]
[381486633,1756230757087,-1036.02,0.00028767,5]
[381486634,1756230757096,-473.09,0.00028767,5]
[381486635,1756230757106,-400.0,0.00028767,5]
[381486636,1756230757115,-440.17,0.00028767,5]
[381486637,1756230757125,-1153.6,0.00028767,5]
[381486638,1756230757134,-985.74,0.00028767,5]
[381486639,1756230757144,-400.0,0.00028767,5]
[381486640,1756230757153,-640.2,0.00028767,5]
[381486641,1756230757164,-184.56921144,0.00028767,5]
[381486642,1756230757173,-400.0,0.00028767,5]
[381486643,1756230757184,-743.45,0.00028767,5]
[381486644,1756230757193,-712.48,0.00028767,5]
[381486645,1756230757203,-400.0,0.00028767,5]
[381486646,1756230757212,-400.0,0.00028767,5]
[381486647,1756230757222,-700.09,0.00028767,5]
[381486648,1756230757231,-400.0,0.00028767,5]
[381486649,1756230757241,-400.0,0.00028767,5]
[381486650,1756230757251,-400.0,0.00028767,5]
[381486651,1756230757260,-693.81,0.00028767,5]
[381486652,1756230757270,-707.36,0.00028767,5]
[381486653,1756230757280,-406.06,0.00028767,5]
[381486654,1756230757290,-431.16,0.00028767,5]
[381486655,1756230757299,-701.05,0.00028767,5]
[381486656,1756230757310,-400.0,0.00028767,5]
[381486657,1756230757319,-547.99,0.00028767,5]
[381486658,1756230757329,-929.8,0.00028767,5]
[381486659,1756230757338,-400.0,0.00028767,5]
[381486660,1756230757348,-1530.59,0.00028767,5]
[381486661,1756230757357,-482.83,0.00028767,5]
[381486662,1756230757366,-400.0,0.00028767,5]
[381486663,1756230757378,-490.23,0.00028767,5]
[381486664,1756230757387,-400.0,0.00028767,5]
[381486665,1756230757396,-445.31,0.00028767,5]
[381486666,1756230757406,-400.0,0.00028767,5]
[381486667,1756230757415,-1341.96,0.00028767,5]
[381486668,1756230757425,-400.0,0.00028767,5]
[381486669,1756230757436,-844.87,0.00028767,5]
[381486670,1756230757445,-613.14,0.00028767,5]
[381486671,1756230757455,-400.0,0.00028767,5]
[381486672,1756230757464,-400.0,0.00028767,5]
[381486673,1756230757474,-400.0,0.00028767,5]
[381486674,1756230757484,-746.97,0.00028767,5]
[381486675,1756230757493,-526.43,0.00028767,5]
[381486676,1756230757503,-1160.1,0.00028767,5]
[381486677,1756230757513,-400.0,0.00028767,5]
[381486678,1756230757523,-400.0,0.00028767,5]
[381486679,1756230757532,-807.88,0.00028767,5]
[381486680,1756230757541,-400.0,0.00028767,5]
[381486681,1756230757551,-1586.91,0.00028767,5]
[381486682,1756230757560,-1509.82,0.00028767,5]
[381486683,1756230757570,-642.17,0.00028767,5]
[381486684,1756230757579,-400.0,0.00028767,5]
[381486685,1756230757589,-721.04,0.00028767,5]
[381486686,1756230757598,-507.72,0.00028767,5]
[381486687,1756230757607,-400.0,0.00028767,5]
[381486688,1756230757616,-682.86,0.00028767,5]
[381486689,1756230757626,-400.0,0.00028767,5]
[381486690,1756230757635,-400.0,0.00028767,5]
[381486691,1756230757645,-793.12,0.00028767,5]
[381486692,1756230757655,-507.45,0.00028767,5]
[381486693,1756230757667,-670.75,0.00028767,5]
[381486694,1756230757680,-722.78,0.00028767,5]
[381486695,1756230757690,-1421.41,0.00028767,5]
[381486696,1756230757701,-685.96,0.00028767,5]
[381486697,1756230757711,-1219.97,0.00028767,5]
[381486698,1756230757721,-1393.79,0.00028767,5]
[381486699,1756230757734,-944.91,0.00028767,5]
[381486700,1756230757744,-400.0,0.00028767,5]
[381486701,1756230757754,-400.0,0.00028767,5]
[381486702,1756230757764,-616.04,0.00028767,5]
[381486703,1756230757774,-400.0,0.00028767,5]
[381486704,1756230757783,-400.0,0.00028767,5]
[381486705,1756230757793,-400.0,0.00028767,5]
[381486706,1756230757802,-400.0,0.00028767,5]
[381486707,1756230757812,-400.0,0.00028767,5]
[381486708,1756230757821,-744.71,0.00028767,5]
[381486709,1756230757831,-239.60681547,0.00028767,5]
[381486710,1756230757840,-683.79,0.00028767,5]
[381486711,1756230757850,-496.42,0.00028767,5]
[381486712,1756230757859,-400.0,0.00028767,5]
[381486713,1756230757870,-400.0,0.00028767,5]